bitfinex/quotes_ETHUSD_20250215
["timestamp","ask_amount","ask_price","bid_price","bid_amount"]
[1739614110229,4.45902,2702.9,2702.8,8.75]
[1739614110799,3.69992,2702.8,2702.4,4.01083145]
[1739614110999,3.69992,2702.8,2702.4,6.45438056]
[1739614111233,3.70008,2702.7,2702.4,4.01083145]
[1739614111477,3.70016,2702.6,2702.4,4.01083145]
[1739614112830,0.7593,2702.9,2702.4,4.01083145]
[1739614113011,3.70004,2702.7,2702.4,4.01083145]
[1739614113409,3.70014,2702.6,2702.4,4.01083145]
[1739614113609,0.7799,2702.5,2702.4,4.01083145]
[1739614114207,4.47994,2702.7,2702.4,4.01083145]
[1739614114738,8.18003,2702.7,2702.4,4.01083145]
[1739614115247,3.70014,2702.6,2702.4,4.01083145]
[1739614115449,3.70027,2702.5,2702.4,4.01083145]
[1739614116922,3.70015,2702.6,2702.4,4.01083145]
[1739614118524,4.47994,2702.7,2702.4,4.01083145]
[1739614119562,3.70004,2702.7,2702.4,4.01083145]
[1739614119855,3.96195,2702.8,2702.4,4.01083145]
[1739614120024,3.70014,2702.6,2702.4,4.01083145]
[1739614120226,7.40036,2702.6,2702.4,4.01083145]
[1739614120526,3.70027,2702.5,2702.4,4.01083145]
[1739614120722,3.70014,2702.6,2702.4,4.01083145]
[1739614121022,3.96194,2702.8,2702.4,4.01083145]
[1739614121222,7.66191,2702.8,2702.4,4.01083145]
[1739614121422,3.7,2702.7,2702.4,4.01083145]
[1739614122259,3.96194,2702.8,2702.4,4.01083145]
[1739614122559,3.70022,2702.6,2702.4,4.01083145]
[1739614124455,3.96195,2702.8,2702.4,4.01083145]
[1739614124633,3.70001,2702.7,2702.4,4.01083145]
[1739614125459,3.70002,2702.7,2702.4,4.01083145]
[1739614127428,3.96195,2702.8,2702.4,4.01083145]
[1739614127659,3.70008,2702.7,2702.5,1.70893548]
[1739614128064,3.70014,2702.6,2702.4,4.01083145]
[1739614130664,3.96199,2702.8,2702.4,4.01083145]
[1739614130860,3.70008,2702.7,2702.4,4.01083145]
[1739614131086,3.70008,2702.7,2702.5,1.70893548]
[1739614131663,3.70008,2702.7,2702.4,4.01083145]
[1739614133365,3.70014,2702.6,2702.4,4.01083145]
[1739614133687,7.40018,2702.7,2702.4,4.01083145]
[1739614133880,7.40019,2702.7,2702.4,4.01083145]
[1739614134253,7.40017,2702.7,2702.4,4.01083145]
[1739614134453,3.70008,2702.7,2702.4,4.01083145]
[1739614134655,7.40016,2702.7,2702.4,4.01083145]
[1739614134957,3.70017,2702.6,2702.4,4.01083145]
[1739614135984,3.70008,2702.7,2702.4,4.01083145]
[1739614139395,7.40017,2702.7,2702.4,4.01083145]
[1739614139592,3.70008,2702.7,2702.4,4.01083145]
[1739614139793,3.70025,2702.6,2702.4,4.01083145]
[1739614140575,3.70027,2702.5,2702.4,4.01083145]
[1739614141694,3.70008,2702.7,2702.4,4.01083145]
[1739614141864,7.40019,2702.7,2702.4,4.01083145]
[1739614142890,3.70008,2702.7,2702.4,4.01083145]
[1739614143101,3.70018,2702.6,2702.4,4.01083145]
[1739614144967,3.70008,2702.7,2702.4,4.01083145]
[1739614146202,0.262,2702.8,2702.4,4.01083145]
[1739614146585,0.0992,2703.0,2702.5,0.774]
[1739614146789,4.79009835,2703.0,2702.5,4.29858005]
[1739614147466,4.79009835,2703.0,2702.5,7.99884005]
[1739614147666,4.06087,2703.0,2702.5,7.99884005]
[1739614148307,3.79887,2703.0,2702.5,7.99884005]
[1739614148469,0.0992,2703.0,2702.7,4.474]
[1739614148665,0.0992,2703.0,2702.7,0.774]
[1739614149899,3.79881,2703.0,2702.7,0.774]
[1739614150614,0.0992,2703.0,2702.7,0.774]
[1739614152005,0.0992,2703.0,2702.7,4.47398]
[1739614152206,0.0992,2703.0,2702.8,0.62448448]
[1739614152411,0.0992,2703.0,2702.9,4.01083145]
[1739614153830,0.0992,2703.0,2702.9,6.5496793]
[1739614154917,0.0992,2703.0,2702.9,10.2493993]
[1739614158318,0.0992,2703.0,2702.9,18.9993993]
[1739614158522,0.0992,2703.0,2702.9,21.33176668]
[1739614162514,0.0992,2703.0,2702.9,17.63204668]
[1739614163836,0.0992,2703.0,2702.9,16.80154668]
[1739614163837,3.79879,2703.0,2702.9,16.80154668]
[1739614164059,3.79879,2703.0,2702.9,14.4691793]
[1739614164329,3.79879,2703.0,2702.9,5.7191793]
[1739614166929,3.79879,2703.0,2702.7,8.75]
[1739614166930,4.52184,2701.8,2701.6,3.76246116]
[1739614167114,0.55,2701.7,2701.0,0.72346582]
[1739614167319,0.8206,2701.8,2701.0,0.72346582]
[1739614167320,0.8206,2701.8,2701.0,2.53884785]
[1739614167638,0.8206,2702.1,2701.1,3.6611477]
[1739614167816,3.7007,2702.2,2701.5,3.70163]
[1739614168020,3.70083,2702.1,2701.5,3.70163]
[1739614168224,3.70083,2702.1,2701.3,3.70187]
[1739614168533,3.7011,2701.9,2701.3,3.70187]
[1739614168734,3.7011,2701.9,2701.5,1.70834785]
[1739614169632,3.7011,2701.9,2701.4,0.453237]
[1739614172244,3.7011,2701.9,2701.5,3.76246116]
[1739614172428,3.70083,2702.1,2701.5,3.76246116]
[1739614172610,3.70054,2702.4,2701.8,3.52690327]
[1739614172815,3.70054,2702.4,2701.9,4.19581149]
[1739614173014,9.56131,2702.5,2701.9,16.64681149]
[1739614173429,5.861,2702.5,2702.0,16.21341116]
[1739614174148,9.56129,2702.5,2702.0,12.51246116]
[1739614174453,9.56129,2702.5,2702.1,1.29458115]
[1739614174751,5.861,2702.5,2702.1,1.29458115]
[1739614176354,3.70067,2702.3,2702.1,1.29458115]
[1739614176521,3.70068,2702.2,2702.1,1.29458115]
[1739614176724,3.70068,2702.2,2702.0,12.51246116]
[1739614176725,3.70082,2702.1,2702.0,12.51246116]
[1739614176920,3.70123,2701.8,2701.7,3.76246116]
[1739614178252,3.70178,2701.4,2701.3,3.76246116]
[1739614182821,3.97241,2701.7,2701.3,3.76246116]
[1739614183158,3.97241,2701.7,2701.3,4.13870728]
[1739614183323,3.70151,2701.6,2701.3,4.13870728]
[1739614184952,3.97241,2701.7,2701.3,4.13870728]
[1739614185324,7.67388,2701.7,2701.3,4.13870728]
[1739614185525,3.70155,2701.6,2701.3,4.13870728]
[1739614185761,3.70141,2701.7,2701.4,0.41387073]
[1739614185938,3.70141,2701.7,2701.3,4.13870728]
[1739614186266,3.70151,2701.6,2701.3,4.13870728]
[1739614187751,3.70141,2701.7,2701.3,4.13870728]
[1739614188070,3.70141,2701.7,2701.3,4.97070728]
[1739614188233,3.70141,2701.7,2701.3,4.59446116]
[1739614188636,3.70161,2701.6,2701.3,4.59446116]
[1739614189967,7.40287,2701.7,2701.3,4.59446116]
[1739614190263,3.70151,2701.6,2701.3,4.59446116]
[1739614190477,3.70164,2701.5,2701.3,4.59446116]
[1739614190682,7.40291,2701.7,2701.3,4.59446116]
[1739614190846,3.70141,2701.7,2701.3,4.59446116]
[1739614191881,3.70158,2701.6,2701.3,4.59446116]
[1739614192252,0.785,2701.8,2701.3,4.59446116]
[1739614192454,3.70176,2701.5,2701.3,4.59446116]
[1739614192971,3.70176,2701.5,2701.3,3.76246116]
[1739614195184,7.40353,2701.5,2701.3,3.76246116]
[1739614195385,3.70176,2701.5,2701.3,3.76246116]
[1739614195580,3.70178,2701.4,2701.3,3.76246116]
[1739614198372,4.442123,2701.4,2701.3,3.76246116]
[1739614199884,4.442123,2701.4,2701.3,0.08]
[1739614202957,5.229623,2701.4,2701.3,0.08]
[1739614203380,4.48928,2701.4,2701.3,0.08]
[1739614205293,3.70178,2701.4,2701.3,0.08]
[1739614212702,4.25178,2701.4,2701.3,0.08]
[1739614217106,8.54838327,2701.4,2701.3,0.08]
[1739614218205,3.70274,2700.7,2700.6,3.76246116]
[1739614221369,0.75521459,2700.9,2700.6,3.76246116]
[1739614221703,3.70207,2701.2,2700.7,0.7516]
[1739614222377,3.70198,2701.3,2700.7,0.7516]
[1739614222581,3.70198,2701.3,2700.8,3.76246116]
[1739614222582,3.70212,2701.2,2700.8,3.76246116]
[1739614222996,3.70219,2701.1,2700.8,3.76246116]
[1739614225609,3.70246,2700.9,2700.8,3.76246116]
[1739614231043,4.43146192,2700.9,2700.8,3.76246116]
[1739614231337,3.70246,2700.9,2700.8,3.76246116]
[1739614232594,3.70275,2700.7,2700.5,3.76246116]
[1739614233022,3.70269,2700.8,2700.5,3.76246116]
[1739614234012,3.70246,2700.9,2700.5,3.76246116]
[1739614234331,3.70279,2700.7,2700.5,3.76246116]
[1739614235196,3.70288,2700.6,2700.5,3.76246116]
[1739614242098,7.40566,2700.7,2700.5,3.76246116]
[1739614242600,3.70279,2700.7,2700.5,3.76246116]
[1739614242800,3.70288,2700.6,2700.5,3.76246116]
[1739614246438,3.70274,2700.7,2700.5,3.76246116]
[1739614246741,7.4056,2700.7,2700.5,3.76246116]
[1739614246903,3.70288,2700.6,2700.5,3.76246116]
[1739614248232,3.70274,2700.7,2700.5,3.76246116]
[1739614249517,3.70288,2700.6,2700.5,3.76246116]
[1739614249820,3.70274,2700.7,2700.5,3.76246116]
[1739614250340,3.70288,2700.6,2700.5,3.76246116]
[1739614251728,3.70268,2700.8,2700.5,3.76246116]
[1739614252026,3.70278,2700.7,2700.5,3.76246116]
[1739614252229,7.40561,2700.7,2700.5,3.76246116]
[1739614252725,3.70278,2700.7,2700.5,3.76246116]
[1739614253236,3.70288,2700.6,2700.5,3.76246116]
[1739614253544,3.70278,2700.7,2700.5,3.76246116]
[1739614253707,3.70288,2700.6,2700.5,3.76246116]
[1739614255937,3.70278,2700.7,2700.5,3.76246116]
[1739614256145,3.70288,2700.6,2700.5,3.76246116]
[1739614257675,0.75537103,2701.0,2700.5,4.55786116]
[1739614257867,3.70219,2701.1,2700.6,4.49819]
[1739614258046,3.70248,2700.9,2700.6,0.7954]
[1739614258365,3.70274,2700.7,2700.5,3.76246116]
[1739614259177,3.70256,2700.9,2700.5,3.76246116]
[1739614259361,3.70263,2700.8,2700.5,3.76246116]
[1739614261365,3.70274,2700.7,2700.5,3.76246116]
[1739614263670,3.70329,2700.3,2700.2,3.76246116]
[1739614263972,3.70319,2700.4,2699.8,3.76246116]
[1739614264169,3.70332,2700.3,2699.8,7.46641116]
[1739614264844,0.266,2700.4,2700.0,3.70366]
[1739614265047,0.266,2700.4,2700.0,4.82066712]
[1739614265252,0.266,2700.4,2700.1,0.7954]
[1739614265475,3.96925,2700.4,2700.1,0.7954]
[1739614265616,3.70342,2700.2,2699.8,4.55786116]
[1739614266020,8.19252,2700.2,2699.8,4.55786116]
[1739614266247,3.70358,2700.1,2699.8,4.55786116]
[1739614266735,4.48902,2700.2,2699.8,4.55786116]
[1739614266935,8.19257,2700.2,2699.8,4.55786116]
[1739614267520,3.70372,2700.0,2699.8,3.76246116]
[1739614268062,3.70357,2700.1,2699.8,3.76246116]
[1739614268256,0.7856,2700.2,2699.8,3.76246116]
[1739614268439,3.70347,2700.2,2699.9,0.7954]
[1739614268631,3.70325,2700.4,2699.9,0.7954]
[1739614268953,3.70332,2700.3,2699.9,0.7954]
[1739614269527,1.0526,2700.5,2699.9,0.7954]
[1739614269825,1.0526,2700.5,2699.9,4.49921]
[1739614269826,3.70322,2700.4,2699.9,4.49921]
[1739614270760,3.70322,2700.4,2699.9,4.49915]
[1739614270959,4.44561886,2700.6,2700.0,3.70362]
[1739614271160,3.96993,2700.6,2700.1,3.76246116]
[1739614271368,3.70303,2700.5,2700.1,3.76246116]
[1739614271663,3.96993,2700.6,2700.1,7.46600116]
[1739614271664,0.267,2700.6,2700.1,7.46600116]
[1739614271844,0.267,2700.6,2700.1,3.76246116]
[1739614272027,3.9699,2700.6,2700.1,3.76246116]
[1739614272231,3.9699,2700.6,2700.1,7.46595116]
[1739614272669,3.70302,2700.5,2700.1,3.76246116]
[1739614272835,3.9699,2700.6,2700.1,3.76246116]
[1739614273039,3.9699,2700.6,2700.2,0.7546]
[1739614273366,4.70311023,2700.7,2700.2,4.51706116]
[1739614274561,3.7029,2700.6,2700.2,4.51706116]
[1739614275087,4.70307023,2700.7,2700.2,8.22047116]
[1739614276244,3.70288,2700.6,2700.2,4.51706116]
[1739614279244,4.54346402,2700.6,2700.2,4.51706116]
[1739614279446,3.70318,2700.4,2700.2,4.51706116]
[1739614279847,3.70288,2700.6,2700.2,4.51706116]
[1739614281689,4.70308023,2700.7,2700.2,8.22043116]
[1739614283566,3.70329,2700.3,2700.2,3.76246116]
[1739614284514,4.149109,2700.3,2700.2,3.76246116]
[1739614284679,4.904009,2700.3,2700.2,3.76246116]
[1739614285381,4.904009,2700.3,2700.0,3.76246116]
[1739614285382,3.70356,2700.1,2700.0,3.76246116]
[1739614287320,3.70343,2700.2,2700.0,3.76246116]
[1739614287479,7.40696,2700.2,2700.0,3.76246116]
[1739614288109,3.70343,2700.2,2700.0,3.76246116]
[1739614288318,3.70356,2700.1,2700.0,3.76246116]
[1739614289291,3.70343,2700.2,2700.0,3.76246116]
[1739614289614,7.40696,2700.2,2700.0,3.76246116]
[1739614289975,3.70343,2700.2,2700.0,3.76246116]
[1739614290201,3.70356,2700.1,2700.0,3.76246116]
[1739614290714,3.70343,2700.2,2700.0,3.76246116]
[1739614292148,3.70331,2700.3,2700.0,3.76246116]
[1739614294549,3.70329,2700.3,2700.1,0.7929]
[1739614294851,3.70356,2700.1,2700.0,3.76246116]
[1739614310793,4.46656,2700.1,2700.0,3.76246116]
[1739614311203,5.01656,2700.1,2700.0,3.76246116]
[1739614311390,5.888559,2700.1,2700.0,3.76246116]
[1739614312915,3.70425,2699.6,2699.5,3.76246116]
[1739614313713,3.70452,2699.4,2699.3,3.76246116]
[1739614315297,5.01752,2699.4,2699.3,3.76246116]
[1739614318417,4.51952,2699.4,2699.3,3.76246116]
[1739614318722,3.70471,2699.3,2698.9,3.76246116]
[1739614321090,7.40947,2699.3,2698.9,3.76246116]
[1739614321289,3.70471,2699.3,2698.9,3.76246116]
[1739614321702,3.70482,2699.2,2698.9,3.76246116]
[1739614322304,3.70471,2699.3,2698.9,3.76246116]
[1739614322525,3.70495,2699.1,2698.9,3.76246116]
[1739614323998,3.70475,2699.3,2698.9,3.76246116]
[1739614324186,7.40951,2699.3,2698.9,3.76246116]
[1739614324417,3.70484,2699.2,2698.9,3.76246116]
[1739614325433,3.70489,2699.2,2698.9,3.76246116]
[1739614326096,3.70475,2699.3,2698.9,3.76246116]
[1739614326426,2.224,2699.3,2699.0,0.771]
[1739614326628,5.26195536,2699.4,2699.0,0.771]
[1739614326934,3.70468,2699.3,2699.0,0.771]
[1739614327129,7.40943,2699.3,2699.0,0.771]
[1739614327317,3.70468,2699.3,2699.0,0.771]
[1739614327626,5.26201536,2699.4,2699.0,0.771]
[1739614328597,8.96666536,2699.4,2699.0,0.771]
[1739614328795,5.26201536,2699.4,2699.0,0.771]
[1739614329450,3.7048,2699.2,2699.0,0.771]
[1739614331428,0.7957,2699.3,2698.9,3.76246116]
[1739614331604,3.70488,2699.2,2698.9,3.76246116]
[1739614333031,5.26202536,2699.4,2698.9,3.76246116]
[1739614333433,5.26202536,2699.4,2699.0,0.8289]
[1739614333819,3.7044,2699.5,2699.0,5.3418389]
[1739614334531,4.43850044,2699.6,2699.1,0.8289]
[1739614335213,4.43850044,2699.6,2699.1,4.53381]
[1739614335414,3.70431,2699.6,2699.1,4.53375]
[1739614336506,4.43122049,2699.7,2699.2,3.76246116]
[1739614336838,1.3261,2699.9,2699.2,5.54787617]
[1739614337041,0.264,2700.2,2699.3,0.8289]
[1739614337209,3.70368,2700.1,2699.5,0.8289]
[1739614337541,3.70375,2700.0,2699.5,0.8289]
[1739614338043,0.7273711,2699.9,2699.5,0.8289]
[1739614338340,0.7273711,2699.9,2699.5,2.53347712]
[1739614338538,0.7273711,2699.9,2699.6,0.8289]
[1739614339121,0.7273711,2699.9,2699.6,4.53313]
[1739614339616,7.67109,2700.2,2699.6,4.53313]
[1739614339811,3.70354,2700.2,2699.6,4.53313]
[1739614340022,3.70354,2700.2,2699.8,0.8289]
[1739614340949,4.43318542,2700.4,2700.0,0.8289]
[1739614341128,4.43318542,2700.4,2700.0,4.59136116]
[1739614342129,3.70322,2700.4,2700.0,4.59136116]
[1739614344051,3.70337,2700.3,2700.0,4.59136116]
[1739614345752,3.70344,2700.2,2700.0,4.59136116]
[1739614348932,3.70344,2700.2,2700.0,3.76246116]
[1739614349151,7.40696,2700.2,2700.0,3.76246116]
[1739614349336,3.70344,2700.2,2700.0,3.76246116]
[1739614360461,4.46226,2700.1,2700.0,3.76246116]
[1739614360668,5.27883,2700.1,2700.0,3.76246116]
[1739614361237,5.27883,2700.1,2699.4,3.70452]
[1739614361238,3.70422,2699.7,2699.3,6.27667291]
[1739614361445,3.70422,2699.7,2699.3,4.56446116]
[1739614362360,3.70427,2699.6,2699.3,4.56446116]
[1739614362663,3.70422,2699.7,2699.3,6.27667291]
[1739614362865,0.55,2699.8,2699.5,1.71221175]
[1739614363168,3.70373,2700.0,2699.7,1.71221175]
[1739614363565,3.70394,2699.9,2699.6,0.7664]
[1739614363967,3.70373,2700.0,2699.6,0.7664]
[1739614364350,7.40752,2700.0,2699.6,0.7664]
[1739614364546,3.70385,2699.9,2699.6,0.7664]
[1739614364742,3.70405,2699.8,2699.6,0.7664]
[1739614365148,3.7042,2699.7,2699.4,0.7664]
[1739614365582,3.70405,2699.8,2699.4,0.7664]
[1739614365760,3.70426,2699.6,2699.4,0.7664]
[1739614367178,3.70405,2699.8,2699.4,0.7664]
[1739614368185,4.44597256,2700.0,2699.4,5.64749336]
[1739614368361,8.14976256,2700.0,2699.4,5.64749336]
[1739614368772,3.70386,2699.9,2699.4,5.64749336]
[1739614369086,0.74219256,2700.0,2699.5,3.70432]
[1739614369087,3.70371,2700.0,2699.5,3.70432]
[1739614369990,3.70371,2700.0,2699.6,0.7664]
[1739614370485,3.70391,2699.9,2699.6,0.7664]
[1739614371256,3.70404,2699.8,2699.6,0.7664]
[1739614371469,3.70411,2699.7,2699.4,0.7664]
[1739614371669,3.70428,2699.6,2699.4,0.7664]
[1739614372251,3.70411,2699.7,2699.4,4.52886116]
[1739614372457,4.25389,2699.9,2699.4,4.52886116]
[1739614373690,7.95784,2699.9,2699.4,4.52886116]
[1739614374508,4.25389,2699.9,2699.4,4.52886116]
[1739614374690,3.70399,2699.8,2699.4,4.52886116]
[1739614377214,3.70413,2699.7,2699.4,4.52886116]
[1739614377495,3.70399,2699.8,2699.4,4.52886116]
[1739614378593,0.55,2699.9,2699.4,4.52886116]
[1739614378780,0.55,2699.9,2699.5,3.70436]
[1739614379181,4.25384,2699.9,2699.4,4.52886116]
[1739614379901,4.25384,2699.9,2699.4,8.23325116]
[1739614380085,4.25384,2699.9,2699.5,3.70437]
[1739614380282,1.55124723,2700.1,2699.5,0.03704368]
[1739614380481,4.49036,2700.5,2699.8,0.8267]
[1739614380823,5.6803,2700.9,2699.8,0.8267]
[1739614380824,3.96695,2700.6,2700.2,0.8267]
[1739614380978,3.70304,2700.5,2700.2,0.8267]
[1739614381313,0.7873,2700.5,2699.9,0.8267]
[1739614381485,3.70353,2700.2,2699.8,3.76246116]
[1739614381802,3.70365,2700.1,2699.8,3.76246116]
[1739614382042,3.70371,2700.0,2699.8,3.76246116]
[1739614382578,3.70384,2699.9,2699.8,3.76246116]
[1739614383724,7.4075,2700.0,2699.8,3.76246116]
[1739614383923,3.70371,2700.0,2699.8,3.76246116]
[1739614384332,0.7873,2700.1,2699.8,3.76246116]
[1739614384528,3.70349,2700.2,2699.8,3.76246116]
[1739614384830,3.70349,2700.2,2699.8,4.22137728]
[1739614385193,3.70323,2700.4,2699.8,4.22137728]
[1739614385194,7.40649,2700.4,2699.9,0.8267]
[1739614385569,7.40649,2700.4,2699.9,4.53045]
[1739614385570,3.70323,2700.4,2699.9,4.53045]
[1739614386229,3.70329,2700.3,2699.9,0.8267]
[1739614386404,3.70329,2700.3,2700.0,0.85806297]
[1739614387023,3.70329,2700.3,2700.1,3.76246116]
[1739614387401,3.70342,2700.2,2700.1,3.76246116]
[1739614388548,4.25342,2700.2,2700.1,3.76246116]
[1739614388893,6.47742,2700.2,2700.1,3.76246116]
[1739614389344,10.26472,2700.2,2700.1,3.76246116]
[1739614390345,3.70438,2699.5,2699.4,3.76246116]
[1739614390934,3.70422,2699.7,2699.4,3.76246116]
[1739614394436,3.70405,2699.8,2699.4,3.76246116]
[1739614394819,4.44772521,2699.9,2699.4,3.76246116]
[1739614395021,8.15164521,2699.9,2699.4,5.31557052]
[1739614395417,3.70371,2700.0,2699.5,3.70438]
[1739614395621,3.70371,2700.0,2699.5,4.47598]
[1739614395941,3.70371,2700.0,2699.6,3.76246116]
[1739614396510,3.70371,2700.0,2699.6,4.74161621]
[1739614396910,3.70389,2699.9,2699.6,4.74161621]
[1739614397137,3.70389,2699.9,2699.6,3.76246116]
[1739614397637,3.80291,2700.0,2699.6,3.76246116]
[1739614398570,3.70385,2699.9,2699.6,3.76246116]
[1739614398936,0.0992,2700.0,2699.7,4.47559]
[1739614399331,0.0992,2700.0,2699.7,0.7716]
[1739614399630,0.0992,2700.0,2699.8,0.82382712]
[1739614401861,0.0992,2700.0,2699.8,3.76246116]
[1739614404979,3.80292,2700.0,2699.8,3.76246116]
[1739614405276,3.70384,2699.9,2699.8,3.76246116]
[1739614407751,3.70384,2699.9,2699.6,3.76246116]
[1739614408448,3.70401,2699.8,2699.6,3.76246116]
[1739614408759,3.70411,2699.7,2699.6,3.76246116]
[1739614408964,4.50221,2699.7,2699.6,3.76246116]
[1739614409565,3.70411,2699.7,2699.3,0.7716]
[1739614409885,7.40832,2699.7,2699.3,0.7716]
[1739614410085,0.7716,2699.6,2699.2,3.53255246]
[1739614410398,3.70459,2699.4,2699.1,0.801]
[1739614413856,3.70469,2699.3,2699.1,3.76246116]
[1739614414403,7.4092,2699.4,2699.1,3.76246116]
[1739614414569,3.70471,2699.3,2699.1,3.76246116]
[1739614414905,0.55,2699.2,2698.9,3.53255246]
[1739614415206,0.7716,2699.4,2698.6,4.50653]
[1739614415207,3.70529,2698.9,2698.6,0.801]
[1739614416299,0.55,2699.0,2698.6,0.801]
[1739614416481,4.2551,2699.0,2698.6,0.801]
[1739614417409,0.55,2699.0,2698.6,0.801]
[1739614417794,4.25507,2699.0,2698.6,0.801]
[1739614418183,3.70523,2698.9,2698.6,0.801]
[1739614418704,3.7054,2698.8,2698.4,3.76246116]
[1739614418905,3.7054,2698.8,2698.4,6.53855652]
[1739614419105,3.70523,2698.9,2698.4,10.24444652]
[1739614421423,3.705,2699.1,2698.7,0.801]
[1739614421580,0.266,2699.2,2698.7,4.50639]
[1739614421780,4.52081,2699.2,2698.7,4.50639]
[1739614422028,0.816,2699.2,2698.7,5.68083925]
[1739614423812,0.816,2699.2,2698.8,3.70532]
[1739614424379,1.0376,2699.3,2698.9,3.70517]
[1739614424579,1.0376,2699.3,2698.8,3.70532]
[1739614424813,3.70454,2699.4,2698.9,4.50079]
[1739614424985,4.4438203,2699.5,2699.0,4.50073]
[1739614425201,1.0053603,2699.5,2699.0,8.26319116]
[1739614425984,4.7097603,2699.5,2699.0,8.26319116]
[1739614426198,4.7097603,2699.5,2699.0,10.72774489]
[1739614426915,3.70406,2699.8,2699.3,0.7957]
[1739614427086,3.70406,2699.8,2699.3,4.50034]
[1739614427933,4.44446029,2699.8,2699.3,8.26280116]
[1739614428231,0.74040029,2699.8,2699.3,8.26280116]
[1739614428835,3.96988,2699.9,2699.3,8.26280116]
[1739614429037,0.55,2699.8,2699.3,8.26280116]
[1739614429330,0.55,2699.8,2699.3,9.81281352]
[1739614429533,0.55,2699.8,2699.4,3.70451]
[1739614429910,0.0992,2700.0,2699.6,0.7957]
[1739614430132,0.0992,2700.0,2699.6,4.55816116]
[1739614430329,3.80293,2700.0,2699.6,4.55816116]
[1739614430548,0.0992,2700.0,2699.6,5.34299735]
[1739614430704,0.0992,2700.0,2699.6,9.04722735]
[1739614431952,3.70385,2699.9,2699.6,5.34299735]
[1739614432103,3.70385,2699.9,2699.6,4.55816116]
[1739614432304,3.70405,2699.8,2699.6,4.55816116]
[1739614432499,3.70405,2699.8,2699.6,3.76246116]
[1739614433429,3.70385,2699.9,2699.6,3.76246116]
[1739614433634,3.70411,2699.7,2699.6,3.76246116]
[1739614434750,3.70411,2699.7,2699.4,0.7957]
[1739614437484,3.70432,2699.6,2699.4,0.7957]
[1739614438065,3.70432,2699.6,2699.3,3.76246116]
[1739614438259,3.70441,2699.5,2699.3,3.76246116]
[1739614438669,0.7917,2699.6,2699.3,3.76246116]
[1739614438879,3.70419,2699.7,2699.3,3.76246116]
[1739614439084,3.70419,2699.7,2699.4,0.7885]
[1739614439285,7.40839,2699.7,2699.4,0.7885]
[1739614440097,3.70435,2699.6,2699.3,3.76246116]
[1739614440392,7.4084,2699.7,2699.3,3.76246116]
[1739614440571,0.7917,2699.8,2699.3,7.46709116]
[1739614440767,3.704,2699.8,2699.4,0.7885]
[1739614441183,3.70413,2699.7,2699.4,0.7885]
[1739614445099,3.70407,2699.8,2699.4,0.7885]
[1739614445303,3.70413,2699.7,2699.4,0.7885]
[1739614446994,4.43082872,2699.9,2699.4,0.7885]
[1739614447215,3.70398,2699.8,2699.4,0.7885]
[1739614447583,4.43082872,2699.9,2699.4,0.7885]
[1739614447800,3.70412,2699.7,2699.4,0.7885]
[1739614448376,3.70412,2699.7,2699.3,3.76246116]
[1739614448377,3.70433,2699.6,2699.2,3.53255246]
[1739614448612,3.70446,2699.5,2699.0,8.25603116]
[1739614448772,3.70473,2699.3,2699.0,4.55096116]
[1739614448978,3.70489,2699.2,2699.0,3.76246116]
[1739614449172,3.70489,2699.2,2698.8,3.76246116]
[1739614449390,3.7051,2699.0,2698.7,0.7885]
[1739614451605,4.49672,2699.1,2698.7,0.7885]
[1739614452134,0.7917,2699.1,2698.7,0.7885]
[1739614452738,3.96967,2699.3,2698.8,3.70532]
[1739614453530,7.67441,2699.3,2698.8,3.70532]
[1739614453934,3.96967,2699.3,2698.8,3.70532]
[1739614454353,7.67442,2699.3,2698.8,3.70532]
[1739614454929,3.96967,2699.3,2698.7,1.22060525]
[1739614455135,7.67443,2699.3,2698.8,0.84587677]
[1739614455637,3.96967,2699.3,2698.8,0.84587677]
[1739614455813,7.67444,2699.3,2698.8,0.84587677]
[1739614456800,7.67441,2699.3,2698.8,0.84587677]
[1739614457136,7.67443,2699.3,2698.8,0.84587677]
[1739614457342,3.7048,2699.2,2698.8,0.84587677]
[1739614457511,7.67441,2699.3,2698.8,0.84587677]
[1739614458305,7.67441,2699.3,2698.8,4.60833793]
[1739614458505,3.70487,2699.2,2698.8,4.60833793]
[1739614460542,7.40899,2699.5,2699.0,0.7764]
[1739614460703,3.70456,2699.4,2699.0,0.7764]
[1739614461740,7.40871,2699.6,2699.1,0.7764]
[1739614462157,3.70434,2699.6,2699.1,0.7764]
[1739614462637,3.70446,2699.5,2699.1,0.7764]
[1739614462835,3.70459,2699.4,2699.1,0.7764]
[1739614463042,3.70439,2699.5,2699.1,1.67315018]
[1739614463212,8.15673207,2699.6,2699.1,1.67315018]
[1739614463406,4.45237207,2699.6,2699.1,1.67315018]
[1739614463604,8.15671207,2699.6,2699.1,1.67315018]
[1739614463842,3.7044,2699.5,2699.1,1.67315018]
[1739614464243,3.7044,2699.5,2699.1,5.43561134]
[1739614466450,4.45237207,2699.6,2699.1,5.43561134]
[1739614466634,3.70454,2699.4,2699.1,4.53886116]
[1739614466834,3.70467,2699.3,2699.1,4.53886116]
[1739614467306,3.70446,2699.5,2699.1,4.53886116]
[1739614467511,3.70447,2699.5,2699.1,4.53886116]
[1739614467738,3.70459,2699.4,2699.1,4.53886116]
[1739614469010,4.45236207,2699.6,2699.1,4.53886116]
[1739614469011,3.70447,2699.5,2699.1,4.53886116]
[1739614469616,3.70447,2699.5,2699.1,6.68685345]
[1739614469811,3.70427,2699.6,2699.1,10.39170345]
[1739614470035,7.40862,2699.6,2699.1,10.39170345]
[1739614470238,3.70427,2699.6,2699.2,0.7752]
[1739614470470,0.265,2699.7,2699.2,0.7752]
[1739614470755,3.96918,2699.7,2699.2,0.7752]
[1739614471044,3.70425,2699.6,2699.2,5.34680181]
[1739614474475,0.265,2699.7,2699.2,9.05159181]
[1739614474872,4.42936182,2699.8,2699.2,5.34680181]
[1739614475055,3.96807,2699.8,2699.4,0.7752]
[1739614475254,7.67212,2699.8,2699.4,0.7752]
[1739614475456,3.96805,2699.8,2699.4,1.68034618]